[Event "January 2 Early 2024"]
[Site "https://www.chess.com"]
[Date "2024.01.02"]
[Round "6"]
[White "Von Buelow, Georg"]
[Black "Adireddy Arjun"]
[Result "0-1"]
[Board "182"]
[TimeControl "180+1"]
[WhiteFideId "4620658"]
[BlackFideId "25647709"]
[WhiteElo "2173"]
[BlackElo "2496"]
[WhiteTeam "GER"]
[BlackTeam "IND"]
[WhiteClock "0:00:00"]
[BlackClock "0:00:11"]

1. e4 {[%clk 0:02:54]}  c5 {[%clk 0:02:59]} 2. Nf3 {[%clk 0:02:54]}  g6 {[%clk 0:02:51]} 3. d4 {[%clk 0:02:54]}  cxd4 {[%clk 0:02:52]} 4. Nxd4 {[%clk 0:02:54]}  Nc6 {[%clk 0:02:51]} 5. c4 {[%clk 0:02:54]}  Bg7 {[%clk 0:02:51]} 6. Be3 {[%clk 0:02:54]}  Nf6 {[%clk 0:02:51]} 7. Nc3 {[%clk 0:02:55]}  d6 {[%clk 0:02:52]} 8. Be2 {[%clk 0:02:55]}  O-O {[%clk 0:02:52]} 9. O-O {[%clk 0:02:55]}  Bd7 {[%clk 0:02:49]} 10. h3 {[%clk 0:02:55]}  Nxd4 {[%clk 0:02:48]} 11. Bxd4 {[%clk 0:02:55]}  Bc6 {[%clk 0:02:49]} 12. Qc2 {[%clk 0:02:54]}  Qa5 {[%clk 0:02:47]} 13. a3 {[%clk 0:02:50]}  Rac8 {[%clk 0:02:41]} 14. b4 {[%clk 0:02:48]}  Qd8 {[%clk 0:02:42]} 15. Rad1 {[%clk 0:02:47]}  Nd7 {[%clk 0:02:41]} 16. Bxg7 {[%clk 0:02:45]}  Kxg7 {[%clk 0:02:41]} 17. Bg4 {[%clk 0:02:44]}  b6 {[%clk 0:02:28]} 18. e5 {[%clk 0:01:40]}  Nxe5 {[%clk 0:02:23]} 19. Bxc8 {[%clk 0:01:40]}  Qxc8 {[%clk 0:02:24]} 20. c5 {[%clk 0:01:34]}  bxc5 {[%clk 0:02:16]} 21. bxc5 {[%clk 0:01:34]}  dxc5 {[%clk 0:02:11]} 22. Rfe1 {[%clk 0:01:29]}  Nc4 {[%clk 0:02:07]} 23. Ne4 {[%clk 0:01:23]}  Nb6 {[%clk 0:01:53]} 24. Qxc5 {[%clk 0:01:17]}  Bxe4 {[%clk 0:01:48]} 25. Qxc8 {[%clk 0:01:16]}  Rxc8 {[%clk 0:01:44]} 26. Rxe4 {[%clk 0:01:17]}  e6 {[%clk 0:01:45]} 27. Re3 {[%clk 0:00:56]}  Nd5 {[%clk 0:01:41]} 28. Rb3 {[%clk 0:00:55]}  Rc5 {[%clk 0:01:40]} 29. Rb7 {[%clk 0:00:47]}  a5 {[%clk 0:01:35]} 30. Ra7 {[%clk 0:00:43]}  Kf6 {[%clk 0:01:33]} 31. Rd3 {[%clk 0:00:42]}  Kg7 {[%clk 0:01:29]} 32. Rf3 {[%clk 0:00:37]}  Nf6 {[%clk 0:01:29]} 33. Rb3 {[%clk 0:00:36]}  Ne4 {[%clk 0:01:19]} 34. Rf3 {[%clk 0:00:31]}  Nd6 {[%clk 0:00:54]} 35. a4 {[%clk 0:00:28]}  h5 {[%clk 0:00:41]} 36. g3 {[%clk 0:00:25]}  Rd5 {[%clk 0:00:38]} 37. Kg2 {[%clk 0:00:24]}  g5 {[%clk 0:00:38]} 38. Rc3 {[%clk 0:00:15]}  Ne4 {[%clk 0:00:27]} 39. Rcc7 {[%clk 0:00:12]}  Rf5 {[%clk 0:00:26]} 40. f3 {[%clk 0:00:10]}  Nd2 {[%clk 0:00:20]} 41. Rc3 {[%clk 0:00:08]}  Re5 {[%clk 0:00:16]} 42. Kf2 {[%clk 0:00:06]}  g4 {[%clk 0:00:16]} 43. hxg4 {[%clk 0:00:06]}  hxg4 {[%clk 0:00:17]} 44. Re3 {[%clk 0:00:03]}  Rf5 {[%clk 0:00:17]} 45. Ke2 {[%clk 0:00:02]}  Nxf3 {[%clk 0:00:17]} 46. Rb7 {[%clk 0:00:02]}  Nd4+ {[%clk 0:00:17]} 47. Kd3 {[%clk 0:00:03]}  Nc6 {[%clk 0:00:17]} 48. Rb5 {[%clk 0:00:00]}  Rf1 {[%clk 0:00:11]} 0-1

[Event "January 2 Early 2024"]
[Site "https://www.chess.com"]
[Date "2024.01.02"]
[Round "6"]
[White "Santos Flores, Alberto"]
[Black "Guzman Lozano, Campo Elias"]
[Result "1-0"]
[Board "183"]
[TimeControl "180+1"]
[WhiteFideId "3601234"]
[BlackFideId "4403746"]
[WhiteElo "2495"]
[BlackElo "2173"]
[WhiteTeam "ECU"]
[BlackTeam "COL"]
[WhiteClock "0:01:54"]
[BlackClock "0:00:37"]

1. e4 {[%clk 0:03:00]}  c5 {[%clk 0:02:44]} 2. Nf3 {[%clk 0:03:00]}  Nc6 {[%clk 0:02:42]} 3. Nc3 {[%clk 0:02:59]}  g6 {[%clk 0:02:41]} 4. d4 {[%clk 0:02:59]}  cxd4 {[%clk 0:02:40]} 5. Nxd4 {[%clk 0:03:00]}  Bg7 {[%clk 0:02:40]} 6. Be3 {[%clk 0:03:00]}  Nf6 {[%clk 0:02:39]} 7. Bc4 {[%clk 0:03:01]}  O-O {[%clk 0:02:38]} 8. Bb3 {[%clk 0:02:59]}  d6 {[%clk 0:02:37]} 9. f3 {[%clk 0:02:58]}  Bd7 {[%clk 0:02:34]} 10. Qd2 {[%clk 0:02:58]}  Re8 {[%clk 0:02:32]} 11. h4 {[%clk 0:02:56]}  h5 {[%clk 0:02:30]} 12. O-O-O {[%clk 0:02:55]}  Rc8 {[%clk 0:02:29]} 13. Kb1 {[%clk 0:02:55]}  Na5 {[%clk 0:02:28]} 14. Bg5 {[%clk 0:02:54]}  Nc4 {[%clk 0:02:27]} 15. Qe2 {[%clk 0:02:54]}  Ne5 {[%clk 0:02:24]} 16. g4 {[%clk 0:02:51]}  Rxc3 {[%clk 0:02:22]} 17. bxc3 {[%clk 0:02:51]}  hxg4 {[%clk 0:02:22]} 18. h5 {[%clk 0:02:51]}  gxf3 {[%clk 0:02:17]} 19. Qd2 {[%clk 0:02:50]}  gxh5 {[%clk 0:02:09]} 20. Bxf6 {[%clk 0:02:42]}  exf6 {[%clk 0:02:07]} 21. Rxh5 {[%clk 0:02:39]}  Bg4 {[%clk 0:01:59]} 22. Rhh1 {[%clk 0:02:34]}  a6 {[%clk 0:01:48]} 23. Nf5 {[%clk 0:02:32]}  Ng6 {[%clk 0:01:16]} 24. Nxg7 {[%clk 0:02:16]}  Rxe4 {[%clk 0:01:07]} 25. Qh6 {[%clk 0:02:15]}  f2 {[%clk 0:01:00]} 26. Qxg6 {[%clk 0:02:09]}  Be6 {[%clk 0:00:49]} 27. Nxe6+ {[%clk 0:01:56]}  fxg6 {[%clk 0:00:49]} 28. Nxd8+ {[%clk 0:01:56]}  Kf8 {[%clk 0:00:48]} 29. Ne6+ {[%clk 0:01:55]}  Ke7 {[%clk 0:00:47]} 30. Nd4 {[%clk 0:01:55]}  g5 {[%clk 0:00:43]} 31. Rdf1 {[%clk 0:01:54]}  Rf4 {[%clk 0:00:37]} 32. Rh2 {[%clk 0:01:54]} 1-0

[Event "January 2 Early 2024"]
[Site "https://www.chess.com"]
[Date "2024.01.02"]
[Round "6"]
[White "Petre, Nad-Titus"]
[Black "Mende, Andreas"]
[Result "1-0"]
[Board "184"]
[TimeControl "180+1"]
[WhiteFideId "1204165"]
[BlackFideId "4631102"]
[WhiteElo "2491"]
[BlackElo "2152"]
[WhiteTeam "ROU"]
[BlackTeam "GER"]
[WhiteClock "0:00:19"]
[BlackClock "0:00:05"]

1. e4 {[%clk 0:03:00]}  c5 {[%clk 0:02:59]} 2. Be2 {[%clk 0:03:00]}  Nc6 {[%clk 0:02:56]} 3. f4 {[%clk 0:03:00]}  g6 {[%clk 0:02:53]} 4. Nf3 {[%clk 0:03:00]}  Bg7 {[%clk 0:02:53]} 5. c3 {[%clk 0:02:58]}  d6 {[%clk 0:02:49]} 6. d4 {[%clk 0:02:55]}  cxd4 {[%clk 0:02:48]} 7. cxd4 {[%clk 0:02:56]}  e5 {[%clk 0:02:48]} 8. dxe5 {[%clk 0:02:26]}  dxe5 {[%clk 0:02:44]} 9. Qxd8+ {[%clk 0:02:26]}  Kxd8 {[%clk 0:02:39]} 10. fxe5 {[%clk 0:02:05]}  Nxe5 {[%clk 0:02:36]} 11. O-O {[%clk 0:02:00]}  Nxf3+ {[%clk 0:02:29]} 12. Rxf3 {[%clk 0:01:56]}  Be6 {[%clk 0:02:26]} 13. Bg5+ {[%clk 0:01:47]}  Ne7 {[%clk 0:02:13]} 14. Nc3 {[%clk 0:01:45]}  h6 {[%clk 0:02:06]} 15. Rd1+ {[%clk 0:01:41]}  Ke8 {[%clk 0:02:04]} 16. Bb5+ {[%clk 0:01:15]}  Kf8 {[%clk 0:02:00]} 17. Be3 {[%clk 0:01:12]}  a6 {[%clk 0:01:38]} 18. Bd7 {[%clk 0:01:12]}  Bxd7 {[%clk 0:01:20]} 19. Rxd7 {[%clk 0:01:13]}  Bxc3 {[%clk 0:01:11]} 20. bxc3 {[%clk 0:01:09]}  Ke8 {[%clk 0:01:07]} 21. Rxb7 {[%clk 0:01:06]}  Rc8 {[%clk 0:01:02]} 22. Bd4 {[%clk 0:00:58]}  Rg8 {[%clk 0:01:00]} 23. Rf6 {[%clk 0:00:56]}  a5 {[%clk 0:00:52]} 24. Ra6 {[%clk 0:00:56]}  Nc6 {[%clk 0:00:52]} 25. Rxc6 {[%clk 0:00:55]}  Rxc6 {[%clk 0:00:48]} 26. Rb8+ {[%clk 0:00:55]}  Ke7 {[%clk 0:00:48]} 27. Rxg8 {[%clk 0:00:55]}  Re6 {[%clk 0:00:43]} 28. e5 {[%clk 0:00:53]}  Rc6 {[%clk 0:00:40]} 29. Ra8 {[%clk 0:00:52]}  Ke6 {[%clk 0:00:36]} 30. Rxa5 {[%clk 0:00:52]}  Rc7 {[%clk 0:00:35]} 31. Kf2 {[%clk 0:00:50]}  Kf5 {[%clk 0:00:34]} 32. Ke3 {[%clk 0:00:50]}  g5 {[%clk 0:00:33]} 33. h3 {[%clk 0:00:49]}  h5 {[%clk 0:00:33]} 34. e6+ {[%clk 0:00:47]}  Kxe6 {[%clk 0:00:30]} 35. Re5+ {[%clk 0:00:46]}  Kd6 {[%clk 0:00:29]} 36. Rxg5 {[%clk 0:00:46]}  Rb7 {[%clk 0:00:26]} 37. Rxh5 {[%clk 0:00:41]}  Rb1 {[%clk 0:00:26]} 38. Rg5 {[%clk 0:00:39]}  Re1+ {[%clk 0:00:25]} 39. Kd3 {[%clk 0:00:36]}  Rd1+ {[%clk 0:00:25]} 40. Kc4 {[%clk 0:00:34]}  Ra1 {[%clk 0:00:24]} 41. Ra5 {[%clk 0:00:29]}  Rh1 {[%clk 0:00:21]} 42. a4 {[%clk 0:00:26]}  Rh2 {[%clk 0:00:21]} 43. Rg5 {[%clk 0:00:26]}  Rh1 {[%clk 0:00:21]} 44. a5 {[%clk 0:00:26]}  Ra1 {[%clk 0:00:20]} 45. h4 {[%clk 0:00:26]}  Ke6 {[%clk 0:00:18]} 46. h5 {[%clk 0:00:25]}  f6 {[%clk 0:00:18]} 47. Rb5 {[%clk 0:00:23]}  Kf7 {[%clk 0:00:17]} 48. g4 {[%clk 0:00:21]}  Kg7 {[%clk 0:00:17]} 49. g5 {[%clk 0:00:21]}  Kf7 {[%clk 0:00:16]} 50. Bxf6 {[%clk 0:00:19]}  Ra4+ {[%clk 0:00:14]} 51. Kb3 {[%clk 0:00:19]}  Rh4 {[%clk 0:00:13]} 52. h6 {[%clk 0:00:19]}  Kg6 {[%clk 0:00:13]} 53. a6 {[%clk 0:00:18]}  Rh1 {[%clk 0:00:12]} 54. Ra5 {[%clk 0:00:18]}  Rb1+ {[%clk 0:00:11]} 55. Kc4 {[%clk 0:00:19]}  Rb8 {[%clk 0:00:10]} 56. a7 {[%clk 0:00:19]}  Ra8 {[%clk 0:00:10]} 57. Kb5 {[%clk 0:00:19]}  Kh7 {[%clk 0:00:05]} 58. Kb6 {[%clk 0:00:19]} 1-0

[Event "January 2 Early 2024"]
[Site "https://www.chess.com"]
[Date "2024.01.02"]
[Round "6"]
[White "Valle Luis, Leo"]
[Black "Novikova, Margarita"]
[Result "1-0"]
[Board "188"]
[TimeControl "180+1"]
[WhiteFideId "54577187"]
[BlackFideId "14109689"]
[WhiteElo "2422"]
[BlackElo "2115"]
[WhiteTeam "ESP"]
[BlackTeam "GER"]
[WhiteClock "0:02:06"]
[BlackClock "0:01:21"]

1. e4 {[%clk 0:02:56]}  e5 {[%clk 0:02:59]} 2. Nf3 {[%clk 0:02:56]}  Nf6 {[%clk 0:02:59]} 3. Nxe5 {[%clk 0:02:56]}  Nxe4 {[%clk 0:02:58]} 4. Qe2 {[%clk 0:02:54]}  d5 {[%clk 0:02:45]} 5. d3 {[%clk 0:02:51]}  Bd6 {[%clk 0:02:37]} 6. Nf3 {[%clk 0:02:34]}  O-O {[%clk 0:02:19]} 7. dxe4 {[%clk 0:02:32]}  dxe4 {[%clk 0:02:13]} 8. Nd4 {[%clk 0:02:13]}  Bb4+ {[%clk 0:02:06]} 9. c3 {[%clk 0:02:14]}  Qxd4 {[%clk 0:02:06]} 10. cxb4 {[%clk 0:02:14]}  Qxb4+ {[%clk 0:02:06]} 11. Nc3 {[%clk 0:02:13]}  Bd7 {[%clk 0:01:55]} 12. Be3 {[%clk 0:02:12]}  Ba4 {[%clk 0:01:49]} 13. Qc4 {[%clk 0:02:11]}  Qxc4 {[%clk 0:01:25]} 14. Bxc4 {[%clk 0:02:10]}  c6 {[%clk 0:01:25]} 15. b3 {[%clk 0:02:07]}  b5 {[%clk 0:01:21]} 16. Be2 {[%clk 0:02:06]} 1-0

[Event "January 2 Early 2024"]
[Site "https://www.chess.com"]
[Date "2024.01.02"]
[Round "6"]
[White "Subramanian, Anusha"]
[Black "Zhuk, Valeriy"]
[Result "1-0"]
[Board "189"]
[TimeControl "180+1"]
[WhiteFideId "477710"]
[BlackFideId "24151254"]
[WhiteElo "2115"]
[BlackElo "2399"]
[WhiteTeam "ENG"]
[BlackTeam "RUS"]
[WhiteClock "0:00:02"]
[BlackClock "0:00:00"]

1. e4 {[%clk 0:03:00]}  c5 {[%clk 0:02:56]} 2. Nf3 {[%clk 0:02:59]}  e6 {[%clk 0:02:56]} 3. d4 {[%clk 0:02:59]}  cxd4 {[%clk 0:02:57]} 4. Nxd4 {[%clk 0:03:00]}  Nf6 {[%clk 0:02:57]} 5. Nc3 {[%clk 0:02:59]}  Nc6 {[%clk 0:02:58]} 6. f3 {[%clk 0:02:58]}  Bc5 {[%clk 0:02:53]} 7. Nb3 {[%clk 0:02:54]}  Bb6 {[%clk 0:02:52]} 8. Bg5 {[%clk 0:02:47]}  h6 {[%clk 0:02:41]} 9. Bxf6 {[%clk 0:02:41]}  Qxf6 {[%clk 0:02:41]} 10. Qd2 {[%clk 0:02:41]}  O-O {[%clk 0:02:16]} 11. O-O-O {[%clk 0:02:40]}  a5 {[%clk 0:02:13]} 12. a3 {[%clk 0:01:57]}  a4 {[%clk 0:02:11]} 13. Na1 {[%clk 0:01:57]}  Bd4 {[%clk 0:01:57]} 14. Bb5 {[%clk 0:01:32]}  Be5 {[%clk 0:01:56]} 15. Kb1 {[%clk 0:01:20]}  d6 {[%clk 0:01:50]} 16. Rhf1 {[%clk 0:00:53]}  Bf4 {[%clk 0:00:48]} 17. Qe2 {[%clk 0:00:40]}  Nd4 {[%clk 0:00:46]} 18. Qd3 {[%clk 0:00:40]}  Nxb5 {[%clk 0:00:42]} 19. Nxb5 {[%clk 0:00:37]}  d5 {[%clk 0:00:34]} 20. g3 {[%clk 0:00:27]}  Be5 {[%clk 0:00:27]} 21. Nc3 {[%clk 0:00:17]}  Bd7 {[%clk 0:00:20]} 22. exd5 {[%clk 0:00:15]}  exd5 {[%clk 0:00:18]} 23. Nxd5 {[%clk 0:00:15]}  Qe6 {[%clk 0:00:17]} 24. f4 {[%clk 0:00:12]}  Bb8 {[%clk 0:00:14]} 25. Rfe1 {[%clk 0:00:11]}  Qh3 {[%clk 0:00:08]} 26. Ne7+ {[%clk 0:00:09]}  Kh8 {[%clk 0:00:09]} 27. Qxd7 {[%clk 0:00:10]}  Qxh2 {[%clk 0:00:09]} 28. Nd5 {[%clk 0:00:08]}  Qxg3 {[%clk 0:00:08]} 29. Qe7 {[%clk 0:00:05]}  Bxf4 {[%clk 0:00:07]} 30. Nb6 {[%clk 0:00:04]}  Rae8 {[%clk 0:00:05]} 31. Qb4 {[%clk 0:00:03]}  Bd6 {[%clk 0:00:00]} 32. Qd2 {[%clk 0:00:02]} 1-0

[Event "January 2 Early 2024"]
[Site "https://www.chess.com"]
[Date "2024.01.02"]
[Round "6"]
[White "Brandao, Marcius Gomes"]
[Black "Marchesich, Giovanni"]
[Result "0-1"]
[Board "191"]
[TimeControl "180+1"]
[WhiteFideId "2124980"]
[BlackFideId "2824790"]
[WhiteElo "2065"]
[BlackElo "2360"]
[WhiteTeam "BRA"]
[BlackTeam "ITA"]
[WhiteClock "0:00:00"]
[BlackClock "0:00:30"]

1. d4 {[%clk 0:03:00]}  Nf6 {[%clk 0:02:59]} 2. c4 {[%clk 0:02:58]}  c5 {[%clk 0:03:00]} 3. d5 {[%clk 0:02:57]}  b5 {[%clk 0:03:01]} 4. cxb5 {[%clk 0:02:58]}  a6 {[%clk 0:03:01]} 5. bxa6 {[%clk 0:02:58]}  g6 {[%clk 0:03:02]} 6. Nc3 {[%clk 0:02:58]}  Bg7 {[%clk 0:03:02]} 7. e4 {[%clk 0:02:58]}  O-O {[%clk 0:03:02]} 8. e5 {[%clk 0:02:58]}  Ne8 {[%clk 0:03:02]} 9. Nf3 {[%clk 0:02:58]}  d6 {[%clk 0:03:03]} 10. Bf4 {[%clk 0:02:54]}  Nd7 {[%clk 0:02:58]} 11. exd6 {[%clk 0:02:20]}  Nxd6 {[%clk 0:02:57]} 12. Be2 {[%clk 0:02:14]}  Qb6 {[%clk 0:02:51]} 13. Rb1 {[%clk 0:02:02]}  Bxa6 {[%clk 0:02:46]} 14. O-O {[%clk 0:02:02]}  Rfb8 {[%clk 0:02:42]} 15. Re1 {[%clk 0:01:57]}  c4 {[%clk 0:02:26]} 16. Be3 {[%clk 0:01:44]}  Qc7 {[%clk 0:02:21]} 17. Nd4 {[%clk 0:01:34]}  Re8 {[%clk 0:01:51]} 18. Qd2 {[%clk 0:01:24]}  Nc5 {[%clk 0:01:48]} 19. Bh6 {[%clk 0:00:56]}  Bf6 {[%clk 0:01:24]} 20. f3 {[%clk 0:00:36]}  Bb7 {[%clk 0:01:17]} 21. Kh1 {[%clk 0:00:36]}  Qb6 {[%clk 0:01:12]} 22. Be3 {[%clk 0:00:32]}  Qc7 {[%clk 0:01:08]} 23. Ncb5 {[%clk 0:00:30]}  Qd7 {[%clk 0:00:53]} 24. Nxd6 {[%clk 0:00:25]}  exd6 {[%clk 0:00:54]} 25. b4 {[%clk 0:00:22]}  cxb3 {[%clk 0:00:48]} 26. axb3 {[%clk 0:00:20]}  Re5 {[%clk 0:00:35]} 27. Bf4 {[%clk 0:00:20]}  Rxd5 {[%clk 0:00:34]} 28. Bc4 {[%clk 0:00:18]}  Rxd4 {[%clk 0:00:33]} 29. Qe3 {[%clk 0:00:06]}  Ne6 {[%clk 0:00:30]} 30. Bxe6 {[%clk 0:00:05]}  fxe6 {[%clk 0:00:29]} 31. Qxe6+ {[%clk 0:00:03]}  Qxe6 {[%clk 0:00:30]} 32. Rxe6 {[%clk 0:00:00]}  Rxf4 {[%clk 0:00:30]} 0-1

[Event "January 2 Early 2024"]
[Site "https://www.chess.com"]
[Date "2024.01.02"]
[Round "6"]
[White "Murthy, Pappu"]
[Black "Kornyukov, Alexey"]
[Result "0-1"]
[Board "194"]
[TimeControl "180+1"]
[WhiteFideId "2013401"]
[BlackFideId "4150457"]
[WhiteElo "1986"]
[BlackElo "2296"]
[WhiteTeam "USA"]
[BlackTeam "RUS"]
[WhiteClock "0:00:00"]
[BlackClock "0:00:12"]

1. e4 {[%clk 0:02:39]}  c5 {[%clk 0:02:42]} 2. Nf3 {[%clk 0:02:38]}  Nc6 {[%clk 0:02:37]} 3. d4 {[%clk 0:02:38]}  cxd4 {[%clk 0:02:37]} 4. Nxd4 {[%clk 0:02:39]}  e5 {[%clk 0:02:36]} 5. Nb5 {[%clk 0:02:38]}  a6 {[%clk 0:02:36]} 6. Nd6+ {[%clk 0:02:37]}  Bxd6 {[%clk 0:02:36]} 7. Qxd6 {[%clk 0:02:38]}  Qe7 {[%clk 0:02:35]} 8. Qd1 {[%clk 0:02:39]}  Nf6 {[%clk 0:02:35]} 9. Bd3 {[%clk 0:02:33]}  O-O {[%clk 0:02:33]} 10. O-O {[%clk 0:02:33]}  d6 {[%clk 0:02:32]} 11. a3 {[%clk 0:02:32]}  Be6 {[%clk 0:02:27]} 12. Bg5 {[%clk 0:02:32]}  h6 {[%clk 0:02:26]} 13. Bh4 {[%clk 0:02:31]}  Rad8 {[%clk 0:02:24]} 14. Nc3 {[%clk 0:02:30]}  g5 {[%clk 0:02:24]} 15. Bg3 {[%clk 0:02:20]}  d5 {[%clk 0:02:20]} 16. Qe1 {[%clk 0:01:56]}  dxe4 {[%clk 0:02:08]} 17. Nxe4 {[%clk 0:01:54]}  Nxe4 {[%clk 0:02:05]} 18. Bxe4 {[%clk 0:01:48]}  Bd5 {[%clk 0:02:01]} 19. f3 {[%clk 0:01:34]}  f5 {[%clk 0:01:57]} 20. Bxd5+ {[%clk 0:01:22]}  Rxd5 {[%clk 0:01:56]} 21. c3 {[%clk 0:01:19]}  Rfd8 {[%clk 0:01:54]} 22. Qe2 {[%clk 0:01:09]}  f4 {[%clk 0:01:49]} 23. Bf2 {[%clk 0:01:07]}  Rd2 {[%clk 0:01:43]} 24. Qc4+ {[%clk 0:01:06]}  Qf7 {[%clk 0:01:36]} 25. Qxf7+ {[%clk 0:00:56]}  Kxf7 {[%clk 0:01:36]} 26. b4 {[%clk 0:00:47]}  Rc2 {[%clk 0:01:32]} 27. Rfc1 {[%clk 0:00:46]}  Rdd2 {[%clk 0:01:28]} 28. Rxc2 {[%clk 0:00:45]}  Rxc2 {[%clk 0:01:26]} 29. Be1 {[%clk 0:00:46]}  Ke6 {[%clk 0:01:22]} 30. a4 {[%clk 0:00:32]}  b5 {[%clk 0:01:08]} 31. axb5 {[%clk 0:00:31]}  axb5 {[%clk 0:01:07]} 32. Ra6 {[%clk 0:00:21]}  Kd5 {[%clk 0:01:00]} 33. Rb6 {[%clk 0:00:20]}  Na7 {[%clk 0:00:52]} 34. Rxh6 {[%clk 0:00:16]}  Rc1 {[%clk 0:00:49]} 35. Kf2 {[%clk 0:00:14]}  Rc2+ {[%clk 0:00:44]} 36. Kf1 {[%clk 0:00:13]}  Nc6 {[%clk 0:00:27]} 37. h4 {[%clk 0:00:13]}  gxh4 {[%clk 0:00:26]} 38. Rxh4 {[%clk 0:00:13]}  Ne7 {[%clk 0:00:23]} 39. Rh7 {[%clk 0:00:11]}  Nf5 {[%clk 0:00:22]} 40. Rb7 {[%clk 0:00:11]}  Ne3+ {[%clk 0:00:21]} 41. Kg1 {[%clk 0:00:11]}  Rc1 {[%clk 0:00:20]} 42. Kf2 {[%clk 0:00:11]}  Rc2+ {[%clk 0:00:19]} 43. Kg1 {[%clk 0:00:09]}  Kc6 {[%clk 0:00:18]} 44. Re7 {[%clk 0:00:08]}  Re2 {[%clk 0:00:18]} 45. Bf2 {[%clk 0:00:05]}  Kd6 {[%clk 0:00:18]} 46. Re8 {[%clk 0:00:05]}  Nd1 {[%clk 0:00:17]} 47. Bh4 {[%clk 0:00:04]}  Nxc3 {[%clk 0:00:16]} 48. Rd8+ {[%clk 0:00:02]}  Kc7 {[%clk 0:00:16]} 49. Rd3 {[%clk 0:00:02]}  Na4 {[%clk 0:00:15]} 50. Rd5 {[%clk 0:00:02]}  Kc6 {[%clk 0:00:14]} 51. Rd8 {[%clk 0:00:02]}  Rb2 {[%clk 0:00:13]} 52. Bf6 {[%clk 0:00:01]}  Rb1+ {[%clk 0:00:13]} 53. Kh2 {[%clk 0:00:00]}  Rxb4 {[%clk 0:00:12]} 0-1

[Event "January 2 Early 2024"]
[Site "https://www.chess.com"]
[Date "2024.01.02"]
[Round "6"]
[White "Tharushi, T H D Niklesha"]
[Black "Cornelison, Paul"]
[Result "0-1"]
[Board "195"]
[TimeControl "180+1"]
[WhiteFideId "9918264"]
[BlackFideId "2004186"]
[WhiteElo "2292"]
[BlackElo "1954"]
[WhiteTeam "SRI"]
[BlackTeam "USA"]
[WhiteClock "0:01:07"]
[BlackClock "0:00:15"]

1. e4 {[%clk 0:02:59]}  e5 {[%clk 0:02:59]} 2. Nf3 {[%clk 0:02:59]}  Nf6 {[%clk 0:03:00]} 3. Nxe5 {[%clk 0:02:58]}  d6 {[%clk 0:03:00]} 4. Nf3 {[%clk 0:02:56]}  Nxe4 {[%clk 0:03:00]} 5. Nc3 {[%clk 0:02:57]}  Nxc3 {[%clk 0:02:59]} 6. dxc3 {[%clk 0:02:57]}  Be7 {[%clk 0:02:59]} 7. Bd3 {[%clk 0:02:58]}  Nc6 {[%clk 0:02:57]} 8. Bf4 {[%clk 0:02:57]}  O-O {[%clk 0:02:53]} 9. Qd2 {[%clk 0:02:56]}  Bf6 {[%clk 0:02:53]} 10. O-O-O {[%clk 0:02:56]}  Bg4 {[%clk 0:02:47]} 11. h3 {[%clk 0:02:54]}  Bxf3 {[%clk 0:02:44]} 12. gxf3 {[%clk 0:02:54]}  Ne5 {[%clk 0:02:44]} 13. Bxe5 {[%clk 0:02:43]}  Bxe5 {[%clk 0:02:42]} 14. f4 {[%clk 0:02:42]}  Bf6 {[%clk 0:02:42]} 15. Rdg1 {[%clk 0:02:40]}  c5 {[%clk 0:02:29]} 16. c4 {[%clk 0:02:34]}  a5 {[%clk 0:02:10]} 17. h4 {[%clk 0:02:28]}  a4 {[%clk 0:02:08]} 18. h5 {[%clk 0:02:25]}  h6 {[%clk 0:02:07]} 19. f3 {[%clk 0:02:24]}  a3 {[%clk 0:02:04]} 20. b3 {[%clk 0:02:23]}  Qa5 {[%clk 0:02:02]} 21. Qe2 {[%clk 0:02:14]}  Qc3 {[%clk 0:01:49]} 22. Qe4 {[%clk 0:02:14]}  Rfe8 {[%clk 0:01:31]} 23. Qh7+ {[%clk 0:01:56]}  Kf8 {[%clk 0:01:30]} 24. Qh8+ {[%clk 0:01:54]}  Ke7 {[%clk 0:01:29]} 25. Qh7 {[%clk 0:01:54]}  Qb2+ {[%clk 0:01:02]} 26. Kd2 {[%clk 0:01:53]}  Bc3+ {[%clk 0:01:01]} 27. Ke2 {[%clk 0:01:53]}  Kd7+ {[%clk 0:01:01]} 28. Kf1 {[%clk 0:01:47]}  Qc1+ {[%clk 0:00:52]} 29. Kg2 {[%clk 0:01:45]}  Qxf4 {[%clk 0:00:48]} 30. Qf5+ {[%clk 0:01:43]}  Qxf5 {[%clk 0:00:45]} 31. Bxf5+ {[%clk 0:01:44]}  Kc7 {[%clk 0:00:44]} 32. Rd1 {[%clk 0:01:36]}  Re2+ {[%clk 0:00:42]} 33. Kg3 {[%clk 0:01:33]}  Rae8 {[%clk 0:00:37]} 34. f4 {[%clk 0:01:21]}  R8e3+ {[%clk 0:00:26]} 35. Kh4 {[%clk 0:01:18]}  Be1+ {[%clk 0:00:20]} 36. Rhxe1 {[%clk 0:01:15]}  Rxe1 {[%clk 0:00:20]} 37. Rd3 {[%clk 0:01:08]}  Rh1+ {[%clk 0:00:16]} 38. Kg4 {[%clk 0:01:08]}  Rxd3 {[%clk 0:00:15]} 39. Bxd3 {[%clk 0:01:07]}  Ra1 {[%clk 0:00:16]} 40. Kf5 {[%clk 0:01:06]}  Rxa2 {[%clk 0:00:15]} 41. Ke4 {[%clk 0:01:06]}  Ra1 {[%clk 0:00:15]} 42. Kd5 {[%clk 0:01:06]}  Re1 {[%clk 0:00:15]} 43. f5 {[%clk 0:01:07]}  Re5# {[%clk 0:00:15]} 0-1

[Event "January 2 Early 2024"]
[Site "https://www.chess.com"]
[Date "2024.01.02"]
[Round "6"]
[White "Gulamirian, Korun"]
[Black "Cardozo Munar, Carlos Eduardo"]
[Result "0-1"]
[Board "197"]
[TimeControl "180+1"]
[WhiteFideId "4144899"]
[BlackFideId "4409477"]
[WhiteElo "1573"]
[BlackElo "2283"]
[WhiteTeam "RUS"]
[BlackTeam "COL"]
[WhiteClock "0:00:00"]
[BlackClock "0:00:56"]

1. e4 {[%clk 0:02:58]}  e6 {[%clk 0:02:59]} 2. d4 {[%clk 0:02:57]}  d5 {[%clk 0:03:00]} 3. Nd2 {[%clk 0:02:56]}  c5 {[%clk 0:03:00]} 4. exd5 {[%clk 0:02:54]}  Qxd5 {[%clk 0:02:59]} 5. dxc5 {[%clk 0:02:46]}  Bxc5 {[%clk 0:02:59]} 6. Ngf3 {[%clk 0:02:46]}  Nc6 {[%clk 0:02:59]} 7. Bc4 {[%clk 0:02:43]}  Qh5 {[%clk 0:02:59]} 8. O-O {[%clk 0:02:40]}  Nf6 {[%clk 0:02:59]} 9. c3 {[%clk 0:02:37]}  a6 {[%clk 0:02:58]} 10. b4 {[%clk 0:02:28]}  Ba7 {[%clk 0:02:54]} 11. a4 {[%clk 0:02:23]}  b5 {[%clk 0:02:51]} 12. axb5 {[%clk 0:02:21]}  axb5 {[%clk 0:02:52]} 13. Be2 {[%clk 0:02:19]}  Bb7 {[%clk 0:02:51]} 14. Ra3 {[%clk 0:02:01]}  O-O {[%clk 0:02:48]} 15. Bxb5 {[%clk 0:01:57]}  Qxb5 {[%clk 0:02:46]} 16. Nb3 {[%clk 0:01:51]}  Qh5 {[%clk 0:02:44]} 17. Bf4 {[%clk 0:01:44]}  Bxf2+ {[%clk 0:02:38]} 18. Rxf2 {[%clk 0:01:43]}  Rxa3 {[%clk 0:02:39]} 19. b5 {[%clk 0:01:38]}  Na5 {[%clk 0:02:28]} 20. Nbd4 {[%clk 0:01:27]}  Rxc3 {[%clk 0:02:18]} 21. Qa1 {[%clk 0:01:14]}  Rxf3 {[%clk 0:02:00]} 22. Nxf3 {[%clk 0:01:11]}  Qxb5 {[%clk 0:01:59]} 23. Rb2 {[%clk 0:01:08]}  Qc5+ {[%clk 0:01:57]} 24. Kh1 {[%clk 0:01:02]}  Ne4 {[%clk 0:01:54]} 25. h3 {[%clk 0:00:57]}  h6 {[%clk 0:01:46]} 26. Ne5 {[%clk 0:00:33]}  Qd4 {[%clk 0:01:30]} 27. Ra2 {[%clk 0:00:19]}  Nf2+ {[%clk 0:01:26]} 28. Kh2 {[%clk 0:00:10]}  Qxf4+ {[%clk 0:01:25]} 29. g3 {[%clk 0:00:10]}  Qe4 {[%clk 0:01:00]} 30. Rxf2 {[%clk 0:00:00]}  Nb3 {[%clk 0:00:56]} 0-1